[Event "Titled Tuesday Blitz April 18 Early 2023"]
[White "Fernandez Hernandez, Gerardo"]
[Black "2good4u734"]
[WhiteFideId "2207400"]
[WhiteElo "2168"]
[BlackElo "2218"]
[Result "1-0"]
[Round "08"]
[TimeControl "180+2"]
[Date "2023.04.18"]
[WhiteClock "0:00:07"]
[BlackClock "0:00:01"]

1. e4 {[%clk 0:03:00]}  b6 {[%clk 0:02:57]} 2. d4 {[%clk 0:03:00]}  Bb7 {[%clk 0:02:58]} 3. Bd3 {[%clk 0:03:00]}  e6 {[%clk 0:02:58]} 4. Nc3 {[%clk 0:02:59]}  Nf6 {[%clk 0:02:54]} 5. Nf3 {[%clk 0:02:58]}  Bb4 {[%clk 0:02:54]} 6. Qe2 {[%clk 0:02:57]}  d5 {[%clk 0:02:50]} 7. e5 {[%clk 0:02:57]}  Ne4 {[%clk 0:02:51]} 8. Bd2 {[%clk 0:02:57]}  Bxc3 {[%clk 0:02:33]} 9. Bxc3 {[%clk 0:02:50]}  c5 {[%clk 0:02:31]} 10. Qe3 {[%clk 0:02:08]}  cxd4 {[%clk 0:01:52]} 11. Bxd4 {[%clk 0:02:03]}  Nd7 {[%clk 0:01:51]} 12. O-O {[%clk 0:01:48]}  O-O {[%clk 0:01:45]} 13. Bxe4 {[%clk 0:01:44]}  dxe4 {[%clk 0:01:45]} 14. Nd2 {[%clk 0:01:40]}  Qc7 {[%clk 0:01:46]} 15. Nxe4 {[%clk 0:01:29]}  Qxc2 {[%clk 0:01:10]} 16. Nd6 {[%clk 0:01:19]}  Bd5 {[%clk 0:01:05]} 17. Rac1 {[%clk 0:01:04]}  Qg6 {[%clk 0:01:04]} 18. f3 {[%clk 0:01:04]}  Rfd8 {[%clk 0:00:23]} 19. Rc7 {[%clk 0:00:58]}  f6 {[%clk 0:00:16]} 20. exf6 {[%clk 0:00:45]}  Nxf6 {[%clk 0:00:17]} 21. Nf7 {[%clk 0:00:33]}  Rdc8 {[%clk 0:00:12]} 22. Ne5 {[%clk 0:00:20]}  Qf5 {[%clk 0:00:10]} 23. Rfc1 {[%clk 0:00:18]}  Rxc7 {[%clk 0:00:10]} 24. Rxc7 {[%clk 0:00:19]}  Qb1+ {[%clk 0:00:11]} 25. Rc1 {[%clk 0:00:18]}  Qxa2 {[%clk 0:00:10]} 26. h3 {[%clk 0:00:12]}  Rf8 {[%clk 0:00:08]} 27. Rc7 {[%clk 0:00:11]}  Qb1+ {[%clk 0:00:06]} 28. Kh2 {[%clk 0:00:11]}  Qf5 {[%clk 0:00:06]} 29. g4 {[%clk 0:00:10]}  Qb1 {[%clk 0:00:05]} 30. Qg5 {[%clk 0:00:09]}  g6 {[%clk 0:00:03]} 31. Qh6 {[%clk 0:00:08]}  Qe1 {[%clk 0:00:01]} 32. Qg7# {[%clk 0:00:07]} 1-0


[Site "https://www.chess.com"]

[Event "Titled Tuesday Blitz April 18 Early 2023"]
[White "Puranik, Abhimanyu"]
[Black "Le, Tuan Minh"]
[WhiteFideId "5061245"]
[BlackFideId "12401153"]
[WhiteElo "2477"]
[BlackElo "2566"]
[Result "0-1"]
[Round "09"]
[TimeControl "180+2"]
[Date "2023.04.18"]
[WhiteClock "0:00:03"]
[BlackClock "0:00:25"]

1. c4 {[%clk 0:02:40]}  c6 {[%clk 0:02:59]} 2. Nf3 {[%clk 0:02:39]}  d5 {[%clk 0:02:55]} 3. e3 {[%clk 0:02:40]}  Nf6 {[%clk 0:02:55]} 4. Nc3 {[%clk 0:02:40]}  a6 {[%clk 0:02:56]} 5. Qc2 {[%clk 0:02:38]}  b5 {[%clk 0:02:44]} 6. b3 {[%clk 0:02:38]}  Bg4 {[%clk 0:02:44]} 7. Be2 {[%clk 0:02:31]}  e6 {[%clk 0:02:43]} 8. h3 {[%clk 0:02:24]}  Bf5 {[%clk 0:02:39]} 9. d3 {[%clk 0:02:19]}  h6 {[%clk 0:02:19]} 10. O-O {[%clk 0:02:16]}  Be7 {[%clk 0:02:19]} 11. e4 {[%clk 0:02:09]}  Bh7 {[%clk 0:02:20]} 12. cxd5 {[%clk 0:01:54]}  cxd5 {[%clk 0:02:18]} 13. exd5 {[%clk 0:01:43]}  Nxd5 {[%clk 0:02:10]} 14. Nxd5 {[%clk 0:01:42]}  Qxd5 {[%clk 0:02:11]} 15. Bb2 {[%clk 0:01:36]}  O-O {[%clk 0:02:08]} 16. Ne5 {[%clk 0:01:35]}  Qd6 {[%clk 0:01:42]} 17. Rac1 {[%clk 0:01:29]}  Nd7 {[%clk 0:01:34]} 18. Qc7 {[%clk 0:01:08]}  Nxe5 {[%clk 0:01:21]} 19. Bxe5 {[%clk 0:01:07]}  Qxc7 {[%clk 0:01:22]} 20. Rxc7 {[%clk 0:01:08]}  Ba3 {[%clk 0:01:22]} 21. d4 {[%clk 0:00:58]}  Rfd8 {[%clk 0:01:15]} 22. Rd1 {[%clk 0:00:56]}  Be4 {[%clk 0:01:11]} 23. Bh5 {[%clk 0:00:56]}  g6 {[%clk 0:01:07]} 24. Bg4 {[%clk 0:00:54]}  Bd6 {[%clk 0:01:02]} 25. Bxd6 {[%clk 0:00:33]}  Rxd6 {[%clk 0:01:02]} 26. Re7 {[%clk 0:00:28]}  Kf8 {[%clk 0:01:01]} 27. Rc7 {[%clk 0:00:28]}  Rad8 {[%clk 0:01:02]} 28. Rdc1 {[%clk 0:00:28]}  Rxd4 {[%clk 0:00:58]} 29. Ra7 {[%clk 0:00:28]}  R8d7 {[%clk 0:00:43]} 30. Rxa6 {[%clk 0:00:27]}  b4 {[%clk 0:00:39]} 31. Be2 {[%clk 0:00:26]}  Rd2 {[%clk 0:00:38]} 32. Bc4 {[%clk 0:00:23]}  g5 {[%clk 0:00:33]} 33. Bb5 {[%clk 0:00:21]}  Rb7 {[%clk 0:00:27]} 34. Bf1 {[%clk 0:00:14]}  Kg7 {[%clk 0:00:28]} 35. f3 {[%clk 0:00:10]}  Bg6 {[%clk 0:00:27]} 36. Bc4 {[%clk 0:00:08]}  Kf6 {[%clk 0:00:23]} 37. a3 {[%clk 0:00:07]}  bxa3 {[%clk 0:00:22]} 38. Rxa3 {[%clk 0:00:07]}  Rbd7 {[%clk 0:00:23]} 39. Ra6 {[%clk 0:00:07]}  Rb2 {[%clk 0:00:22]} 40. Re1 {[%clk 0:00:04]}  Rdd2 {[%clk 0:00:23]} 41. Bxe6 {[%clk 0:00:02]}  Rxg2+ {[%clk 0:00:22]} 42. Kh1 {[%clk 0:00:02]}  Rh2+ {[%clk 0:00:23]} 43. Kg1 {[%clk 0:00:03]}  Rbg2+ {[%clk 0:00:24]} 44. Kf1 {[%clk 0:00:03]}  Bd3+ {[%clk 0:00:25]} 0-1


[Site "https://www.chess.com"]

[Event "Titled Tuesday Blitz April 18 Early 2023"]
[White "Rodshtein, Maxim"]
[Black "Gupta, Abhijeet"]
[WhiteFideId "2806851"]
[BlackFideId "5010608"]
[WhiteElo "2555"]
[BlackElo "2528"]
[Result "0-1"]
[Round "09"]
[TimeControl "180+2"]
[Date "2023.04.18"]
[WhiteClock "0:00:03"]
[BlackClock "0:01:13"]

1. b3 {[%clk 0:03:00]}  Nf6 {[%clk 0:02:59]} 2. Bb2 {[%clk 0:03:01]}  g6 {[%clk 0:02:57]} 3. c4 {[%clk 0:03:00]}  Bg7 {[%clk 0:02:57]} 4. g3 {[%clk 0:03:01]}  O-O {[%clk 0:02:56]} 5. Bg2 {[%clk 0:03:01]}  d6 {[%clk 0:02:55]} 6. d4 {[%clk 0:03:01]}  Na6 {[%clk 0:02:41]} 7. Nf3 {[%clk 0:02:59]}  e5 {[%clk 0:02:40]} 8. dxe5 {[%clk 0:02:41]}  dxe5 {[%clk 0:02:41]} 9. Qxd8 {[%clk 0:02:24]}  Rxd8 {[%clk 0:02:42]} 10. Bxe5 {[%clk 0:02:24]}  Nb4 {[%clk 0:02:40]} 11. Na3 {[%clk 0:02:24]}  Ne4 {[%clk 0:02:37]} 12. Bxg7 {[%clk 0:01:33]}  Kxg7 {[%clk 0:02:38]} 13. O-O {[%clk 0:01:21]}  Nc3 {[%clk 0:02:36]} 14. Rfe1 {[%clk 0:01:21]}  c6 {[%clk 0:02:34]} 15. e3 {[%clk 0:01:16]}  a5 {[%clk 0:02:31]} 16. Nd4 {[%clk 0:01:15]}  a4 {[%clk 0:02:28]} 17. Nac2 {[%clk 0:01:10]}  Nxc2 {[%clk 0:02:10]} 18. Nxc2 {[%clk 0:01:10]}  Rd2 {[%clk 0:02:10]} 19. Nb4 {[%clk 0:01:03]}  Bf5 {[%clk 0:02:05]} 20. e4 {[%clk 0:00:55]}  Be6 {[%clk 0:01:54]} 21. Bf3 {[%clk 0:00:50]}  Rb2 {[%clk 0:01:44]} 22. Re3 {[%clk 0:00:36]}  axb3 {[%clk 0:01:40]} 23. Rxc3 {[%clk 0:00:35]}  bxa2 {[%clk 0:01:39]} 24. Nc2 {[%clk 0:00:32]}  b5 {[%clk 0:01:30]} 25. cxb5 {[%clk 0:00:30]}  cxb5 {[%clk 0:01:30]} 26. e5 {[%clk 0:00:23]}  Ra4 {[%clk 0:01:19]} 27. Kg2 {[%clk 0:00:22]}  b4 {[%clk 0:01:16]} 28. Rc7 {[%clk 0:00:03]}  b3 {[%clk 0:01:13]} 0-1


[Site "https://www.chess.com"]

[Event "Titled Tuesday Blitz April 18 Early 2023"]
[White "Kovalenko, Igor"]
[Black "Bocharov, Dmitry"]
[WhiteFideId "14117908"]
[BlackFideId "4138716"]
[WhiteElo "2574"]
[BlackElo "2469"]
[Result "1-0"]
[Round "09"]
[TimeControl "180+2"]
[Date "2023.04.18"]
[WhiteClock "0:01:31"]
[BlackClock "0:00:07"]

1. d4 {[%clk 0:03:00]}  Nf6 {[%clk 0:02:59]} 2. Nf3 {[%clk 0:03:00]}  d5 {[%clk 0:02:55]} 3. c4 {[%clk 0:03:00]}  e6 {[%clk 0:02:55]} 4. Nc3 {[%clk 0:03:00]}  c6 {[%clk 0:02:54]} 5. Bg5 {[%clk 0:02:58]}  Be7 {[%clk 0:02:50]} 6. e3 {[%clk 0:02:58]}  Nbd7 {[%clk 0:02:51]} 7. Qc2 {[%clk 0:02:58]}  O-O {[%clk 0:02:50]} 8. Rd1 {[%clk 0:02:57]}  h6 {[%clk 0:02:49]} 9. Bf4 {[%clk 0:02:56]}  a6 {[%clk 0:02:44]} 10. cxd5 {[%clk 0:02:53]}  cxd5 {[%clk 0:02:39]} 11. Bd3 {[%clk 0:02:51]}  b5 {[%clk 0:02:39]} 12. O-O {[%clk 0:02:38]}  Bb7 {[%clk 0:02:38]} 13. Rc1 {[%clk 0:02:35]}  Rc8 {[%clk 0:02:37]} 14. Qe2 {[%clk 0:02:31]}  Nh5 {[%clk 0:02:31]} 15. Be5 {[%clk 0:02:26]}  Nhf6 {[%clk 0:02:24]} 16. Bg3 {[%clk 0:02:25]}  Nh5 {[%clk 0:02:23]} 17. Nb1 {[%clk 0:02:21]}  Nxg3 {[%clk 0:02:21]} 18. hxg3 {[%clk 0:02:22]}  Qb6 {[%clk 0:02:20]} 19. Nbd2 {[%clk 0:02:22]}  b4 {[%clk 0:02:14]} 20. g4 {[%clk 0:02:17]}  a5 {[%clk 0:02:12]} 21. g3 {[%clk 0:02:18]}  Rxc1 {[%clk 0:02:08]} 22. Rxc1 {[%clk 0:02:17]}  Rc8 {[%clk 0:02:08]} 23. Rb1 {[%clk 0:02:17]}  Nf6 {[%clk 0:02:01]} 24. g5 {[%clk 0:02:14]}  hxg5 {[%clk 0:02:00]} 25. Nxg5 {[%clk 0:02:15]}  g6 {[%clk 0:01:17]} 26. Kg2 {[%clk 0:02:11]}  Ne8 {[%clk 0:01:11]} 27. Ndf3 {[%clk 0:02:09]}  Nd6 {[%clk 0:01:03]} 28. Rh1 {[%clk 0:02:06]}  Ne4 {[%clk 0:01:03]} 29. Nxf7 {[%clk 0:02:05]}  Kxf7 {[%clk 0:00:32]} 30. Ne5+ {[%clk 0:02:05]}  Kg7 {[%clk 0:00:22]} 31. Qg4 {[%clk 0:02:05]}  Ng5 {[%clk 0:00:22]} 32. f4 {[%clk 0:01:45]}  Ba6 {[%clk 0:00:21]} 33. Bxg6 {[%clk 0:01:45]}  Qb5 {[%clk 0:00:07]} 34. fxg5 {[%clk 0:01:40]}  Rh8 {[%clk 0:00:07]} 35. Qf3 {[%clk 0:01:31]} 1-0


[Site "https://www.chess.com"]

[Event "Titled Tuesday Blitz April 18 Early 2023"]
[White "So, Wesley"]
[Black "Deac, Bogdan-Daniel"]
[WhiteFideId "5202213"]
[BlackFideId "1226380"]
[WhiteElo "2749"]
[BlackElo "2649"]
[Result "1/2-1/2"]
[Round "09"]
[TimeControl "180+2"]
[Date "2023.04.18"]
[WhiteClock "0:00:08"]
[BlackClock "0:00:06"]

1. Nf3 {[%clk 0:02:59]}  d5 {[%clk 0:02:59]} 2. e3 {[%clk 0:02:58]}  Nf6 {[%clk 0:03:00]} 3. c4 {[%clk 0:02:57]}  e6 {[%clk 0:03:00]} 4. Nc3 {[%clk 0:02:58]}  a6 {[%clk 0:03:00]} 5. b3 {[%clk 0:02:53]}  c5 {[%clk 0:02:59]} 6. cxd5 {[%clk 0:02:52]}  exd5 {[%clk 0:03:00]} 7. d4 {[%clk 0:02:53]}  Nc6 {[%clk 0:03:00]} 8. Bb2 {[%clk 0:02:53]}  Bg4 {[%clk 0:03:00]} 9. Be2 {[%clk 0:02:50]}  Bxf3 {[%clk 0:03:00]} 10. Bxf3 {[%clk 0:02:51]}  cxd4 {[%clk 0:03:01]} 11. exd4 {[%clk 0:02:52]}  Bb4 {[%clk 0:03:01]} 12. O-O {[%clk 0:02:49]}  O-O {[%clk 0:03:02]} 13. a3 {[%clk 0:02:46]}  Bxc3 {[%clk 0:02:51]} 14. Bxc3 {[%clk 0:02:47]}  Re8 {[%clk 0:02:50]} 15. Rc1 {[%clk 0:02:44]}  Qb6 {[%clk 0:02:43]} 16. Ba1 {[%clk 0:02:10]}  Na5 {[%clk 0:02:28]} 17. Rc3 {[%clk 0:02:08]}  Rac8 {[%clk 0:02:20]} 18. Rd3 {[%clk 0:01:49]}  Qc7 {[%clk 0:01:51]} 19. Bc3 {[%clk 0:01:37]}  Qb6 {[%clk 0:01:45]} 20. Bb4 {[%clk 0:01:32]}  Nc6 {[%clk 0:01:30]} 21. Bc5 {[%clk 0:01:31]}  Qa5 {[%clk 0:01:29]} 22. g3 {[%clk 0:01:17]}  Ne4 {[%clk 0:01:16]} 23. Bxe4 {[%clk 0:01:10]}  Rxe4 {[%clk 0:01:14]} 24. Qh5 {[%clk 0:01:03]}  Qd8 {[%clk 0:00:36]} 25. Qf5 {[%clk 0:00:53]}  g6 {[%clk 0:00:27]} 26. Qh3 {[%clk 0:00:53]}  f5 {[%clk 0:00:22]} 27. a4 {[%clk 0:00:44]}  Qa5 {[%clk 0:00:21]} 28. Rfd1 {[%clk 0:00:39]}  Rce8 {[%clk 0:00:19]} 29. Qh6 {[%clk 0:00:35]}  Re2 {[%clk 0:00:16]} 30. Bd6 {[%clk 0:00:33]}  Qd8 {[%clk 0:00:13]} 31. Be5 {[%clk 0:00:32]}  Nxe5 {[%clk 0:00:10]} 32. dxe5 {[%clk 0:00:33]}  Qb6 {[%clk 0:00:06]} 33. Qf4 {[%clk 0:00:27]}  R2xe5 {[%clk 0:00:05]} 34. Kg2 {[%clk 0:00:23]}  Re4 {[%clk 0:00:04]} 35. Qg5 {[%clk 0:00:20]}  d4 {[%clk 0:00:04]} 36. h4 {[%clk 0:00:20]}  Qc6 {[%clk 0:00:04]} 37. Kh3 {[%clk 0:00:11]}  Re1 {[%clk 0:00:03]} 38. Rxe1 {[%clk 0:00:11]}  Rxe1 {[%clk 0:00:03]} 39. f3 {[%clk 0:00:11]}  Rh1+ {[%clk 0:00:03]} 40. Kg2 {[%clk 0:00:11]}  Re1 {[%clk 0:00:02]} 41. Qd8+ {[%clk 0:00:10]}  Kf7 {[%clk 0:00:02]} 42. Qxd4 {[%clk 0:00:09]}  Qc2+ {[%clk 0:00:03]} 43. Rd2 {[%clk 0:00:09]}  Re2+ {[%clk 0:00:03]} 44. Rxe2 {[%clk 0:00:08]}  Qxe2+ {[%clk 0:00:04]} 45. Kh3 {[%clk 0:00:07]}  Qxf3 {[%clk 0:00:04]} 46. Qd7+ {[%clk 0:00:07]}  Kf6 {[%clk 0:00:05]} 47. Qd6+ {[%clk 0:00:07]}  Kf7 {[%clk 0:00:05]} 48. Qd7+ {[%clk 0:00:08]}  Kf8 {[%clk 0:00:05]} 49. Qd8+ {[%clk 0:00:08]}  Kf7 {[%clk 0:00:06]} 50. Qd7+ {[%clk 0:00:08]} 1/2-1/2


[Site "https://www.chess.com"]

[Event "Titled Tuesday Blitz April 18 Early 2023"]
[White "Pichot, Alan"]
[Black "Sarana, Alexey"]
[WhiteFideId "110973"]
[BlackFideId "24133795"]
[WhiteElo "2573"]
[BlackElo "2714"]
[Result "0-1"]
[Round "09"]
[TimeControl "180+2"]
[Date "2023.04.18"]
[WhiteClock "0:00:07"]
[BlackClock "0:00:12"]

1. e4 {[%clk 0:03:00]}  c5 {[%clk 0:02:56]} 2. Nf3 {[%clk 0:03:01]}  d6 {[%clk 0:02:56]} 3. Bb5+ {[%clk 0:03:00]}  Bd7 {[%clk 0:02:56]} 4. Bxd7+ {[%clk 0:02:58]}  Nxd7 {[%clk 0:02:57]} 5. O-O {[%clk 0:02:57]}  e6 {[%clk 0:02:57]} 6. d3 {[%clk 0:02:58]}  Be7 {[%clk 0:02:55]} 7. c4 {[%clk 0:02:57]}  Ne5 {[%clk 0:02:55]} 8. Ne1 {[%clk 0:02:54]}  Nc6 {[%clk 0:02:51]} 9. Nc3 {[%clk 0:02:54]}  Bf6 {[%clk 0:02:51]} 10. f4 {[%clk 0:02:53]}  Nge7 {[%clk 0:02:51]} 11. Nc2 {[%clk 0:02:53]}  Nd4 {[%clk 0:02:47]} 12. Nxd4 {[%clk 0:02:50]}  Bxd4+ {[%clk 0:02:48]} 13. Kh1 {[%clk 0:02:51]}  Nc6 {[%clk 0:02:49]} 14. Rb1 {[%clk 0:02:45]}  g6 {[%clk 0:02:48]} 15. Ne2 {[%clk 0:02:45]}  Bg7 {[%clk 0:02:48]} 16. Be3 {[%clk 0:02:45]}  O-O {[%clk 0:02:47]} 17. d4 {[%clk 0:02:43]}  cxd4 {[%clk 0:02:04]} 18. Nxd4 {[%clk 0:02:44]}  Qe7 {[%clk 0:02:04]} 19. Qd2 {[%clk 0:02:40]}  Rfd8 {[%clk 0:02:03]} 20. Rbd1 {[%clk 0:02:35]}  Nxd4 {[%clk 0:01:49]} 21. Bxd4 {[%clk 0:02:34]}  e5 {[%clk 0:01:50]} 22. Bc3 {[%clk 0:02:31]}  Rac8 {[%clk 0:01:48]} 23. b3 {[%clk 0:02:20]}  exf4 {[%clk 0:01:45]} 24. Bxg7 {[%clk 0:02:18]}  Kxg7 {[%clk 0:01:46]} 25. Qxf4 {[%clk 0:02:18]}  Rc5 {[%clk 0:01:46]} 26. Rd3 {[%clk 0:02:12]}  Re5 {[%clk 0:01:44]} 27. Rd4 {[%clk 0:02:01]}  b6 {[%clk 0:01:38]} 28. h3 {[%clk 0:02:00]}  Qe6 {[%clk 0:01:33]} 29. Rf3 {[%clk 0:01:59]}  Rd7 {[%clk 0:01:32]} 30. Rf2 {[%clk 0:01:58]}  Re7 {[%clk 0:01:13]} 31. Kh2 {[%clk 0:01:44]}  h5 {[%clk 0:01:11]} 32. Rf3 {[%clk 0:01:42]}  Re8 {[%clk 0:00:46]} 33. Qd2 {[%clk 0:01:41]}  Rxe4 {[%clk 0:00:44]} 34. Rxe4 {[%clk 0:01:39]}  Qxe4 {[%clk 0:00:45]} 35. Qxd6 {[%clk 0:01:39]}  Re6 {[%clk 0:00:32]} 36. Qd7 {[%clk 0:01:25]}  Qe5+ {[%clk 0:00:31]} 37. Kh1 {[%clk 0:01:25]}  Re7 {[%clk 0:00:30]} 38. Qd3 {[%clk 0:01:17]}  Qa1+ {[%clk 0:00:27]} 39. Kh2 {[%clk 0:01:18]}  Qxa2 {[%clk 0:00:22]} 40. Qd4+ {[%clk 0:01:17]}  Kh7 {[%clk 0:00:21]} 41. Qd5 {[%clk 0:00:56]}  Kg7 {[%clk 0:00:21]} 42. Qd4+ {[%clk 0:00:54]}  Kh7 {[%clk 0:00:21]} 43. Qd5 {[%clk 0:00:43]}  f5 {[%clk 0:00:22]} 44. Qd6 {[%clk 0:00:37]}  Qe2 {[%clk 0:00:22]} 45. Rg3 {[%clk 0:00:37]}  Rg7 {[%clk 0:00:16]} 46. Rf3 {[%clk 0:00:33]}  Qe4 {[%clk 0:00:16]} 47. Rf4 {[%clk 0:00:32]}  Qe7 {[%clk 0:00:16]} 48. Qd5 {[%clk 0:00:28]}  Qc7 {[%clk 0:00:16]} 49. g3 {[%clk 0:00:26]}  Rd7 {[%clk 0:00:16]} 50. Qg2 {[%clk 0:00:23]}  Qe5 {[%clk 0:00:16]} 51. b4 {[%clk 0:00:21]}  Rd3 {[%clk 0:00:15]} 52. h4 {[%clk 0:00:14]}  Kh6 {[%clk 0:00:14]} 53. Qa8 {[%clk 0:00:12]}  Rd2+ {[%clk 0:00:05]} 54. Kh3 {[%clk 0:00:13]}  Rd7 {[%clk 0:00:06]} 55. Qf8+ {[%clk 0:00:12]}  Qg7 {[%clk 0:00:06]} 56. Qe8 {[%clk 0:00:12]}  Kh7 {[%clk 0:00:06]} 57. c5 {[%clk 0:00:11]}  bxc5 {[%clk 0:00:06]} 58. bxc5 {[%clk 0:00:12]}  Qe7 {[%clk 0:00:06]} 59. Qc8 {[%clk 0:00:10]}  Rc7 {[%clk 0:00:06]} 60. Qb8 {[%clk 0:00:10]}  Qxc5 {[%clk 0:00:06]} 61. Rd4 {[%clk 0:00:09]}  Qc6 {[%clk 0:00:06]} 62. Kh2 {[%clk 0:00:08]}  Qc2+ {[%clk 0:00:07]} 63. Kh3 {[%clk 0:00:08]}  Qc1 {[%clk 0:00:07]} 64. Qa8 {[%clk 0:00:03]}  Qf1+ {[%clk 0:00:07]} 65. Qg2 {[%clk 0:00:04]}  Qxg2+ {[%clk 0:00:08]} 66. Kxg2 {[%clk 0:00:05]}  a5 {[%clk 0:00:08]} 67. Ra4 {[%clk 0:00:03]}  Ra7 {[%clk 0:00:09]} 68. Kf3 {[%clk 0:00:04]}  Kg7 {[%clk 0:00:09]} 69. Kf4 {[%clk 0:00:05]}  Kf6 {[%clk 0:00:10]} 70. Kf3 {[%clk 0:00:05]}  Ke5 {[%clk 0:00:10]} 71. Ke3 {[%clk 0:00:06]}  Ra6 {[%clk 0:00:10]} 72. Kf3 {[%clk 0:00:07]}  Kd5 {[%clk 0:00:11]} 73. Kf4 {[%clk 0:00:07]}  Kc5 {[%clk 0:00:12]} 0-1


[Site "https://www.chess.com"]

[Event "Titled Tuesday Blitz April 18 Early 2023"]
[White "Durarbayli, Vasif"]
[Black "Fier, Alexandr"]
[WhiteFideId "13402935"]
[BlackFideId "2107139"]
[WhiteElo "2551"]
[BlackElo "2610"]
[Result "0-1"]
[Round "09"]
[TimeControl "180+2"]
[Date "2023.04.18"]
[WhiteClock "0:00:15"]
[BlackClock "0:02:06"]

1. e4 {[%clk 0:03:00]}  Nf6 {[%clk 0:02:58]} 2. e5 {[%clk 0:03:00]}  Nd5 {[%clk 0:02:59]} 3. d4 {[%clk 0:03:01]}  d6 {[%clk 0:02:59]} 4. c4 {[%clk 0:03:02]}  Nb6 {[%clk 0:02:59]} 5. exd6 {[%clk 0:03:02]}  cxd6 {[%clk 0:02:59]} 6. Nc3 {[%clk 0:03:02]}  g6 {[%clk 0:02:59]} 7. Be2 {[%clk 0:03:01]}  Bg7 {[%clk 0:02:59]} 8. h3 {[%clk 0:03:00]}  O-O {[%clk 0:02:59]} 9. Nf3 {[%clk 0:03:01]}  Nc6 {[%clk 0:03:00]} 10. O-O {[%clk 0:02:58]}  Bf5 {[%clk 0:02:59]} 11. Be3 {[%clk 0:02:43]}  d5 {[%clk 0:02:59]} 12. c5 {[%clk 0:02:43]}  Nc4 {[%clk 0:02:59]} 13. Bc1 {[%clk 0:02:37]}  b6 {[%clk 0:02:59]} 14. b3 {[%clk 0:02:27]}  bxc5 {[%clk 0:03:00]} 15. bxc4 {[%clk 0:02:15]}  cxd4 {[%clk 0:03:00]} 16. cxd5 {[%clk 0:01:49]}  dxc3 {[%clk 0:02:58]} 17. dxc6 {[%clk 0:01:24]}  Qxd1 {[%clk 0:02:57]} 18. Rxd1 {[%clk 0:01:24]}  c2 {[%clk 0:02:57]} 19. Rd4 {[%clk 0:01:24]}  Rab8 {[%clk 0:02:39]} 20. Bd3 {[%clk 0:00:24]}  Bxd4 {[%clk 0:02:21]} 21. Bxf5 {[%clk 0:00:24]}  Bxa1 {[%clk 0:02:12]} 22. Bxc2 {[%clk 0:00:24]}  Rfc8 {[%clk 0:02:08]} 23. Be4 {[%clk 0:00:22]}  Rb4 {[%clk 0:02:07]} 24. Bd5 {[%clk 0:00:15]}  Rb1 {[%clk 0:02:06]} 0-1


[Site "https://www.chess.com"]

[Event "Titled Tuesday Blitz April 18 Early 2023"]
[White "Smirnov, Pavel"]
[Black "Zhigalko_Sergei"]
[WhiteFideId "4123425"]
[WhiteElo "2519"]
[BlackElo "2921"]
[Result "0-1"]
[Round "09"]
[TimeControl "180+2"]
[Date "2023.04.18"]
[WhiteClock "0:00:01"]
[BlackClock "0:00:02"]

1. d4 {[%clk 0:03:00]}  Nf6 {[%clk 0:03:00]} 2. c4 {[%clk 0:03:00]}  e6 {[%clk 0:03:00]} 3. g3 {[%clk 0:02:59]}  c5 {[%clk 0:03:00]} 4. Nf3 {[%clk 0:02:59]}  cxd4 {[%clk 0:03:01]} 5. Nxd4 {[%clk 0:02:59]}  Qc7 {[%clk 0:03:01]} 6. Nc3 {[%clk 0:02:58]}  a6 {[%clk 0:03:02]} 7. Bg2 {[%clk 0:02:59]}  Qxc4 {[%clk 0:03:01]} 8. O-O {[%clk 0:02:59]}  Nc6 {[%clk 0:03:01]} 9. Nb3 {[%clk 0:02:59]}  d5 {[%clk 0:03:01]} 10. Bf4 {[%clk 0:02:59]}  Be7 {[%clk 0:03:01]} 11. Rc1 {[%clk 0:03:00]}  Qb4 {[%clk 0:02:58]} 12. a3 {[%clk 0:02:59]}  Qb6 {[%clk 0:02:57]} 13. e4 {[%clk 0:02:59]}  Nxe4 {[%clk 0:02:54]} 14. Nxe4 {[%clk 0:02:59]}  dxe4 {[%clk 0:02:55]} 15. Nd2 {[%clk 0:02:59]}  O-O {[%clk 0:02:04]} 16. Nc4 {[%clk 0:02:59]}  Qb5 {[%clk 0:01:55]} 17. a4 {[%clk 0:02:58]}  Qb4 {[%clk 0:01:41]} 18. Bd2 {[%clk 0:02:12]}  Qc5 {[%clk 0:01:41]} 19. Be3 {[%clk 0:02:11]}  Qf5 {[%clk 0:01:30]} 20. Nb6 {[%clk 0:01:57]}  Rb8 {[%clk 0:01:28]} 21. Qc2 {[%clk 0:01:55]}  e5 {[%clk 0:01:23]} 22. Bxe4 {[%clk 0:01:49]}  Qh5 {[%clk 0:01:22]} 23. Nd5 {[%clk 0:01:30]}  Bh3 {[%clk 0:01:00]} 24. Rfd1 {[%clk 0:00:56]}  Bg5 {[%clk 0:00:43]} 25. f4 {[%clk 0:00:34]}  exf4 {[%clk 0:00:41]} 26. Bxf4 {[%clk 0:00:30]}  Rbe8 {[%clk 0:00:32]} 27. Re1 {[%clk 0:00:20]}  h6 {[%clk 0:00:22]} 28. Qf2 {[%clk 0:00:16]}  Bd8 {[%clk 0:00:14]} 29. Bf3 {[%clk 0:00:10]}  Qg6 {[%clk 0:00:10]} 30. Kh1 {[%clk 0:00:07]}  Bg4 {[%clk 0:00:09]} 31. Bg2 {[%clk 0:00:07]}  Be6 {[%clk 0:00:08]} 32. Nc3 {[%clk 0:00:05]}  Bf5 {[%clk 0:00:09]} 33. Rcd1 {[%clk 0:00:05]}  Rxe1+ {[%clk 0:00:08]} 34. Qxe1 {[%clk 0:00:05]}  Bf6 {[%clk 0:00:08]} 35. Nd5 {[%clk 0:00:04]}  Bxb2 {[%clk 0:00:08]} 36. h3 {[%clk 0:00:04]}  Bf6 {[%clk 0:00:08]} 37. g4 {[%clk 0:00:03]}  Be6 {[%clk 0:00:08]} 38. Nxf6+ {[%clk 0:00:03]}  Qxf6 {[%clk 0:00:08]} 39. Qg3 {[%clk 0:00:04]}  Re8 {[%clk 0:00:06]} 40. Rf1 {[%clk 0:00:04]}  Qg6 {[%clk 0:00:06]} 41. Kh2 {[%clk 0:00:03]}  Nb4 {[%clk 0:00:06]} 42. Re1 {[%clk 0:00:02]}  Rd8 {[%clk 0:00:04]} 43. Be4 {[%clk 0:00:01]}  Qf6 {[%clk 0:00:03]} 44. g5 {[%clk 0:00:02]}  Qb2+ {[%clk 0:00:02]} 45. Kh1 {[%clk 0:00:02]}  Bd5 {[%clk 0:00:02]} 46. gxh6 {[%clk 0:00:01]}  g6 {[%clk 0:00:03]} 47. h7+ {[%clk 0:00:01]}  Kxh7 {[%clk 0:00:02]} 0-1


[Site "https://www.chess.com"]